[Event "*** Titled Tuesday Blitz"]
[Site "Chess.com"]
[Date "2019.08.06"]
[Round "5"]
[White "HanSchut"]
[Black "Iyael"]
[Result "1-0"]
[WhiteElo "2210"]
[BlackElo "2153"]
[TimeControl "180+2"]
[EndTime "14:03:01 PDT"]
[Termination "HanSchut won by resignation"]

1. e4 {[%clk 0:03:01.9]} 1... c5 {[%clk 0:02:59.5]} 2. Nf3 {[%clk 0:03:02.2]}
2... Nc6 {[%clk 0:03:00.5]} 3. d4 {[%clk 0:03:02.1]} 3... cxd4 {[%clk
0:03:01.5]} 4. Nxd4 {[%clk 0:03:02.9]} 4... Nf6 {[%clk 0:03:03.1]} 5. Nc3 {[%clk
0:03:02.6]} 5... e5 {[%clk 0:03:03.7]} 6. Ndb5 {[%clk 0:03:03.5]} 6... d6 {[%clk
0:03:04.7]} 7. Nd5 {[%clk 0:03:04.1]} 7... Nxd5 {[%clk 0:03:05.1]} 8. exd5
{[%clk 0:03:06]} 8... Nb8 {[%clk 0:03:06.1]} 9. Qf3 {[%clk 0:03:06.5]} 9... Be7
{[%clk 0:03:03.3]} 10. Qc3 {[%clk 0:03:05.1]} 10... Na6 {[%clk 0:03:03]} 11. Be3
{[%clk 0:03:01.8]} 11... O-O {[%clk 0:02:29.1]} 12. Nxa7 {[%clk 0:02:48.5]}
12... Bd7 {[%clk 0:02:29.8]} 13. Bxa6 {[%clk 0:02:45.2]} 13... bxa6 {[%clk
0:02:29.6]} 14. Nc6 {[%clk 0:02:46.7]} 14... Qe8 {[%clk 0:02:25.7]} 15. Nxe7+
{[%clk 0:02:38.5]} 15... Qxe7 {[%clk 0:02:26.2]} 16. O-O {[%clk 0:02:38.9]}
16... Rfc8 {[%clk 0:02:27]} 17. Qd2 {[%clk 0:02:33.9]} 17... Rab8 {[%clk
0:02:27.2]} 18. b3 {[%clk 0:02:34.6]} 18... Bf5 {[%clk 0:02:27.6]} 19. c4 {[%clk
0:02:34.2]} 19... Bg6 {[%clk 0:02:26.1]} 20. f4 {[%clk 0:02:30.4]} 20... f6
{[%clk 0:02:23.7]} 21. c5 {[%clk 0:02:14.8]} 21... dxc5 {[%clk 0:02:21]} 22. d6
{[%clk 0:02:16]} 22... Qd7 {[%clk 0:02:19.4]} 23. fxe5 {[%clk 0:02:08.6]} 23...
fxe5 {[%clk 0:02:19.9]} 24. Bg5 {[%clk 0:01:54.3]} 24... Rb6 {[%clk 0:02:09.4]}
25. Be7 {[%clk 0:01:53.1]} 25... Re8 {[%clk 0:02:10.3]} 26. Qd5+ {[%clk
0:01:50]} 26... Kh8 {[%clk 0:02:09.2]} 27. Qxc5 {[%clk 0:01:41.7]} 27... Rb5
{[%clk 0:02:08.1]} 28. Qc7 {[%clk 0:01:31.1]} 28... Rb7 {[%clk 0:01:48.8]} 29.
Qxd7 {[%clk 0:01:16.3]} 29... Rxd7 {[%clk 0:01:49.7]} 30. Rac1 {[%clk
0:01:17.7]} 30... h6 {[%clk 0:01:48.2]} 31. Rc7 {[%clk 0:01:16.4]} 31... Rexe7
{[%clk 0:01:43.2]} 32. Rf8+ {[%clk 0:00:51.1]} 32... Kh7 {[%clk 0:01:44]} 33.
Rcc8 {[%clk 0:00:52.6]} 33... Re8 {[%clk 0:01:43.6]} 34. Rfxe8 {[%clk
0:00:50.2]} 34... Bxe8 {[%clk 0:01:44.4]} 35. Rxe8 {[%clk 0:00:51.8]} 35... Rxd6
{[%clk 0:01:45.6]} 36. Rxe5 {[%clk 0:00:53]} 36... Kg6 {[%clk 0:01:46.1]} 37.
Ra5 {[%clk 0:00:52.3]} 37... Kf6 {[%clk 0:01:47.1]} 38. Kf2 {[%clk 0:00:53.4]}
38... Ke6 {[%clk 0:01:47.8]} 39. Ke3 {[%clk 0:00:54.1]} 39... Kd7 {[%clk
0:01:49]} 40. Ke4 {[%clk 0:00:52.7]} 40... Kc7 {[%clk 0:01:50.3]} 41. Rd5 {[%clk
0:00:53.2]} 41... Rg6 {[%clk 0:01:50]} 42. g3 {[%clk 0:00:53.4]} 42... Re6+
{[%clk 0:01:50.4]} 43. Re5 {[%clk 0:00:52.5]} 43... Rg6 {[%clk 0:01:51.2]} 44.
Kd5 {[%clk 0:00:48.6]} 44... Kb6 {[%clk 0:01:52.1]} 45. Re6+ {[%clk 0:00:46.8]}
45... Rxe6 {[%clk 0:01:52.9]} 46. Kxe6 {[%clk 0:00:48.5]} 46... Kb5 {[%clk
0:01:54]} 47. a3 {[%clk 0:00:49.6]} 47... Kc5 {[%clk 0:01:53]} 48. Kf7 {[%clk
0:00:48.2]} 48... Kd4 {[%clk 0:01:54.6]} 49. Kxg7 {[%clk 0:00:49.4]} 49... Kc3
{[%clk 0:01:56.3]} 50. b4 {[%clk 0:00:50]} 50... Kb3 {[%clk 0:01:57.4]} 51. Kxh6
{[%clk 0:00:50.7]} 51... Kxa3 {[%clk 0:01:58.7]} 52. g4 {[%clk 0:00:50.6]} 52...
Kxb4 {[%clk 0:01:59.7]} 53. g5 {[%clk 0:00:52.2]} 53... a5 {[%clk 0:02:01.1]}
54. g6 {[%clk 0:00:53.8]} 54... a4 {[%clk 0:02:02.7]} 55. g7 {[%clk 0:00:55.3]}
55... a3 {[%clk 0:02:04.4]} 56. g8=Q {[%clk 0:00:56.4]} 56... a2 {[%clk
0:02:06]} 57. Qxa2 {[%clk 0:00:56.9]} 1-0

[Event "*** Titled Tuesday Blitz"]
[Site "Chess.com"]
[Date "2019.08.06"]
[Round "5"]
[White "tonyq11"]
[Black "Komissarov_alex"]
[Result "1-0"]
[WhiteElo "2219"]
[BlackElo "2173"]
[TimeControl "180+2"]
[EndTime "14:03:07 PDT"]
[Termination "tonyq11 won by checkmate"]

1. d4 {[%clk 0:03:01.9]} 1... d5 {[%clk 0:02:55.5]} 2. c4 {[%clk 0:03:02.8]}
2... e6 {[%clk 0:02:52.9]} 3. Nc3 {[%clk 0:03:03.6]} 3... Bb4 {[%clk 0:02:52]}
4. f3 {[%clk 0:02:51]} 4... Nf6 {[%clk 0:02:45.2]} 5. a3 {[%clk 0:02:47.9]} 5...
Bd6 {[%clk 0:02:35.5]} 6. e3 {[%clk 0:02:48.5]} 6... Nh5 {[%clk 0:02:33.2]} 7.
Qc2 {[%clk 0:02:14.4]} 7... Qh4+ {[%clk 0:02:21]} 8. Qf2 {[%clk 0:02:07.9]} 8...
Bg3 {[%clk 0:02:18.7]} 9. hxg3 {[%clk 0:02:05.7]} 9... Qxh1 {[%clk 0:02:17.3]}
10. g4 {[%clk 0:01:55.3]} 10... Ng3 {[%clk 0:01:59.3]} 11. Qxg3 {[%clk
0:01:48.6]} 11... Qxg1 {[%clk 0:01:57.2]} 12. Qh3 {[%clk 0:01:46.2]} 12... dxc4
{[%clk 0:01:35.9]} 13. Ne2 {[%clk 0:01:43.7]} 13... Qxf1+ {[%clk 0:01:15.6]} 14.
Kxf1 {[%clk 0:01:43.3]} 14... Nc6 {[%clk 0:01:06.2]} 15. Bd2 {[%clk 0:01:42.7]}
15... Bd7 {[%clk 0:01:02]} 16. Bc3 {[%clk 0:01:39.2]} 16... Ne7 {[%clk
0:01:00.3]} 17. e4 {[%clk 0:01:38.3]} 17... O-O-O {[%clk 0:00:59.8]} 18. Rc1
{[%clk 0:01:35.5]} 18... f5 {[%clk 0:00:52.2]} 19. gxf5 {[%clk 0:01:29.7]} 19...
exf5 {[%clk 0:00:52.1]} 20. Qg3 {[%clk 0:01:22.4]} 20... fxe4 {[%clk 0:00:49.9]}
21. fxe4 {[%clk 0:01:22.9]} 21... Rhf8+ {[%clk 0:00:42.8]} 22. Kg1 {[%clk
0:01:23.9]} 22... Rf7 {[%clk 0:00:41.9]} 23. Rf1 {[%clk 0:01:16.2]} 23... Rdf8
{[%clk 0:00:38.1]} 24. Rxf7 {[%clk 0:01:16.2]} 24... Rxf7 {[%clk 0:00:38.6]} 25.
Nf4 {[%clk 0:01:14.6]} 25... b5 {[%clk 0:00:24.5]} 26. e5 {[%clk 0:01:07.1]}
26... Nf5 {[%clk 0:00:21.1]} 27. Qf3 {[%clk 0:00:54.5]} 27... Nh4 {[%clk
0:00:07.4]} 28. Qa8# {[%clk 0:00:53.6]} 1-0

[Event "*** Titled Tuesday Blitz"]
[Site "Chess.com"]
[Date "2019.08.06"]
[Round "5"]
[White "ElHelvetico"]
[Black "pedromartinez91"]
[Result "1-0"]
[WhiteElo "2685"]
[BlackElo "2457"]
[TimeControl "180+2"]
[EndTime "14:03:08 PDT"]
[Termination "ElHelvetico won by resignation"]

1. c4 {[%clk 0:03:01.9]} 1... e5 {[%clk 0:02:55.6]} 2. g3 {[%clk 0:03:03.3]}
2... Nf6 {[%clk 0:02:54.9]} 3. Bg2 {[%clk 0:03:04.8]} 3... d5 {[%clk 0:02:56]}
4. cxd5 {[%clk 0:03:06.3]} 4... Nxd5 {[%clk 0:02:57.9]} 5. Nc3 {[%clk
0:03:07.8]} 5... Nb6 {[%clk 0:02:58.6]} 6. Nf3 {[%clk 0:03:09.1]} 6... Nc6
{[%clk 0:02:54.6]} 7. O-O {[%clk 0:03:10.4]} 7... Be7 {[%clk 0:02:56.1]} 8. d3
{[%clk 0:03:10.4]} 8... O-O {[%clk 0:02:56.9]} 9. Be3 {[%clk 0:03:03]} 9... Re8
{[%clk 0:02:56.5]} 10. Rc1 {[%clk 0:02:57.5]} 10... Bf8 {[%clk 0:02:57.1]} 11.
Na4 {[%clk 0:02:57.8]} 11... Nd4 {[%clk 0:02:18.9]} 12. Nc5 {[%clk 0:02:53.8]}
12... c6 {[%clk 0:02:19.2]} 13. Qd2 {[%clk 0:02:35.6]} 13... Nf5 {[%clk
0:02:10.3]} 14. b4 {[%clk 0:02:30]} 14... Nxe3 {[%clk 0:02:02.3]} 15. fxe3
{[%clk 0:02:31.9]} 15... Nd7 {[%clk 0:02:03.4]} 16. Nb3 {[%clk 0:02:04.3]} 16...
e4 {[%clk 0:01:55.1]} 17. Nfd4 {[%clk 0:02:01.3]} 17... exd3 {[%clk 0:01:51.5]}
18. exd3 {[%clk 0:02:03.2]} 18... Qe7 {[%clk 0:01:44.5]} 19. Nf5 {[%clk
0:01:50.8]} 19... Qxb4 {[%clk 0:01:43.1]} 20. Qf2 {[%clk 0:01:47.3]} 20... f6
{[%clk 0:01:18.3]} 21. Rc4 {[%clk 0:01:45.5]} 21... Qb6 {[%clk 0:01:15.1]} 22.
Rh4 {[%clk 0:01:32.6]} 22... Ne5 {[%clk 0:01:07.9]} 23. d4 {[%clk 0:01:27.1]}
23... Ng6 {[%clk 0:01:04.2]} 24. Re4 {[%clk 0:01:21.2]} 24... Bxf5 {[%clk
0:01:03.3]} 25. Qxf5 {[%clk 0:01:21.2]} 25... Qa6 {[%clk 0:00:57.5]} 26. Rf2
{[%clk 0:00:42.4]} 26... Qd3 {[%clk 0:00:47.3]} 27. Rxe8 {[%clk 0:00:39.8]}
27... Qd1+ {[%clk 0:00:37.2]} 28. Rf1 {[%clk 0:00:40.3]} 28... Qxf1+ {[%clk
0:00:31.3]} 29. Bxf1 {[%clk 0:00:39.7]} 29... Rxe8 {[%clk 0:00:33.2]} 30. Bc4+
{[%clk 0:00:40.2]} 30... Kh8 {[%clk 0:00:34.4]} 31. Qd7 {[%clk 0:00:40]} 31...
Rxe3 {[%clk 0:00:32]} 32. Qf7 {[%clk 0:00:39]} 1-0

[Event "*** Titled Tuesday Blitz"]
[Site "Chess.com"]
[Date "2019.08.06"]
[Round "5"]
[White "eCztery"]
[Black "Vadim_Biliy"]
[Result "1-0"]
[WhiteElo "2142"]
[BlackElo "2215"]
[TimeControl "180+2"]
[EndTime "14:03:11 PDT"]
[Termination "eCztery won by checkmate"]

1. e4 {[%clk 0:03:01.9]} 1... d6 {[%clk 0:02:59.4]} 2. Nc3 {[%clk 0:02:59]} 2...
Nf6 {[%clk 0:02:59.1]} 3. d4 {[%clk 0:02:59.9]} 3... g6 {[%clk 0:02:58.9]} 4. h4
{[%clk 0:02:59.9]} 4... c6 {[%clk 0:02:59.2]} 5. Be2 {[%clk 0:02:59.1]} 5... b5
{[%clk 0:02:58.5]} 6. a3 {[%clk 0:02:56.5]} 6... h5 {[%clk 0:02:54.9]} 7. Bg5
{[%clk 0:02:53.1]} 7... Bg7 {[%clk 0:02:54.1]} 8. Qd2 {[%clk 0:02:52.1]} 8...
Nbd7 {[%clk 0:02:49.1]} 9. f3 {[%clk 0:02:38.7]} 9... Bb7 {[%clk 0:02:45.4]} 10.
g4 {[%clk 0:02:30.2]} 10... a5 {[%clk 0:02:37.9]} 11. Nh3 {[%clk 0:02:17.9]}
11... b4 {[%clk 0:02:37.9]} 12. Nd1 {[%clk 0:02:08.9]} 12... hxg4 {[%clk
0:02:37.3]} 13. fxg4 {[%clk 0:01:43.1]} 13... Nxe4 {[%clk 0:02:36.5]} 14. Qf4
{[%clk 0:01:41.3]} 14... Nxg5 {[%clk 0:02:28.9]} 15. Nxg5 {[%clk 0:01:43.2]}
15... Nf6 {[%clk 0:02:25.5]} 16. Bc4 {[%clk 0:01:29.3]} 16... d5 {[%clk
0:02:23.1]} 17. Bd3 {[%clk 0:01:28.1]} 17... Qd6 {[%clk 0:02:21.9]} 18. Qxd6
{[%clk 0:01:01.6]} 18... exd6 {[%clk 0:02:22.1]} 19. Nf2 {[%clk 0:01:03.2]}
19... c5 {[%clk 0:02:12.6]} 20. Bb5+ {[%clk 0:00:52.1]} 20... Kf8 {[%clk
0:02:11.9]} 21. Kd2 {[%clk 0:00:47.3]} 21... Ne4+ {[%clk 0:01:50.8]} 22. Nfxe4
{[%clk 0:00:47]} 22... dxe4 {[%clk 0:01:51.8]} 23. Rhf1 {[%clk 0:00:37.1]} 23...
Bd5 {[%clk 0:01:40.6]} 24. axb4 {[%clk 0:00:35.2]} 24... cxd4 {[%clk 0:01:29.6]}
25. Nxf7 {[%clk 0:00:20.5]} 25... Bxf7 {[%clk 0:01:27.2]} 26. Bc4 {[%clk
0:00:22]} 26... e3+ {[%clk 0:01:18.1]} 27. Kd3 {[%clk 0:00:21.6]} 27... Ra7
{[%clk 0:01:17.1]} 28. Rxa5 {[%clk 0:00:23.1]} 28... Rxa5 {[%clk 0:01:04.3]} 29.
Rxf7+ {[%clk 0:00:23.4]} 29... Ke8 {[%clk 0:01:05.7]} 30. bxa5 {[%clk 0:00:24]}
30... Be5 {[%clk 0:01:06.8]} 31. a6 {[%clk 0:00:23.3]} 31... Rxh4 {[%clk
0:01:05.7]} 32. a7 {[%clk 0:00:23.8]} 32... d5 {[%clk 0:01:05.1]} 33. Bxd5
{[%clk 0:00:20]} 33... Rxg4 {[%clk 0:00:58.8]} 34. a8=Q+ {[%clk 0:00:20.8]}
34... Bb8 {[%clk 0:00:57.7]} 35. Qxb8# {[%clk 0:00:22.7]} 1-0

[Event "*** Titled Tuesday Blitz"]
[Site "Chess.com"]
[Date "2019.08.06"]
[Round "5"]
[White "BilodeauA"]
[Black "Chopper1905"]
[Result "1-0"]
[WhiteElo "2908"]
[BlackElo "2827"]
[TimeControl "180+2"]
[EndTime "14:03:13 PDT"]
[Termination "BilodeauA won by resignation"]

1. d4 {[%clk 0:02:57.5]} 1... Nf6 {[%clk 0:02:58.3]} 2. Nc3 {[%clk 0:02:58.8]}
2... d5 {[%clk 0:02:55.9]} 3. Bf4 {[%clk 0:02:59.9]} 3... a6 {[%clk 0:02:56]} 4.
e3 {[%clk 0:03:01]} 4... Bf5 {[%clk 0:02:53.7]} 5. f3 {[%clk 0:03:01.6]} 5... h5
{[%clk 0:02:52.8]} 6. Bd3 {[%clk 0:03:02.2]} 6... e6 {[%clk 0:02:49.5]} 7. e4
{[%clk 0:02:59.5]} 7... Bg6 {[%clk 0:02:35.5]} 8. exd5 {[%clk 0:02:53.7]} 8...
Bxd3 {[%clk 0:02:35.4]} 9. Qxd3 {[%clk 0:02:55.6]} 9... Nxd5 {[%clk 0:02:33]}
10. Nge2 {[%clk 0:02:56.7]} 10... Bb4 {[%clk 0:02:29.5]} 11. O-O {[%clk
0:02:56.4]} 11... Bxc3 {[%clk 0:02:20.9]} 12. bxc3 {[%clk 0:02:56.7]} 12... Nxf4
{[%clk 0:02:20.9]} 13. Nxf4 {[%clk 0:02:58]} 13... Qg5 {[%clk 0:02:21.3]} 14.
Qe4 {[%clk 0:02:53.7]} 14... c6 {[%clk 0:02:17.9]} 15. Rab1 {[%clk 0:02:48.3]}
15... Ra7 {[%clk 0:02:10.4]} 16. Rfe1 {[%clk 0:02:32.3]} 16... Nd7 {[%clk
0:02:09.9]} 17. c4 {[%clk 0:02:16.2]} 17... O-O {[%clk 0:01:49.5]} 18. c5 {[%clk
0:02:17.4]} 18... Nf6 {[%clk 0:01:48.1]} 19. Qe5 {[%clk 0:02:10.8]} 19... Qxe5
{[%clk 0:01:47.5]} 20. Rxe5 {[%clk 0:02:12.7]} 20... Rd8 {[%clk 0:01:44.9]} 21.
c3 {[%clk 0:02:12.3]} 21... Nd5 {[%clk 0:01:41.8]} 22. Nxd5 {[%clk 0:02:09.2]}
22... Rxd5 {[%clk 0:01:43.7]} 23. f4 {[%clk 0:01:59.9]} 23... Kf8 {[%clk
0:01:37.9]} 24. Kf2 {[%clk 0:01:59.2]} 24... Ke7 {[%clk 0:01:35.9]} 25. Kg3
{[%clk 0:01:58.5]} 25... g6 {[%clk 0:01:34]} 26. Rxd5 {[%clk 0:01:53]} 26...
cxd5 {[%clk 0:01:21.2]} 27. Kh4 {[%clk 0:01:54]} 27... f6 {[%clk 0:01:21.6]} 28.
Rb6 {[%clk 0:01:53.6]} 28... a5 {[%clk 0:01:21.2]} 29. a4 {[%clk 0:01:54.6]}
29... Kf7 {[%clk 0:01:21.5]} 30. h3 {[%clk 0:01:39.8]} 30... Ke7 {[%clk
0:01:22.5]} 31. g4 {[%clk 0:01:32.9]} 31... hxg4 {[%clk 0:01:24.4]} 32. hxg4
{[%clk 0:01:33.3]} 32... Kf7 {[%clk 0:01:23.9]} 33. f5 {[%clk 0:01:34.6]} 33...
gxf5 {[%clk 0:01:00.5]} 34. gxf5 {[%clk 0:01:35.1]} 34... exf5 {[%clk
0:01:01.2]} 35. Kg3 {[%clk 0:01:30.7]} 35... Kg6 {[%clk 0:00:49.2]} 36. Kf4
{[%clk 0:01:30.2]} 36... Ra8 {[%clk 0:00:50.5]} 37. Rxb7 {[%clk 0:01:29.7]}
37... Re8 {[%clk 0:00:51.9]} 38. c6 {[%clk 0:01:19.4]} 38... Re4+ {[%clk
0:00:52.8]} 39. Kf3 {[%clk 0:01:20.6]} 39... f4 {[%clk 0:00:54.7]} 40. Rb5
{[%clk 0:01:06.4]} 40... Re3+ {[%clk 0:00:50.9]} 41. Kxf4 {[%clk 0:01:07.5]}
41... Rxc3 {[%clk 0:00:52.3]} 42. Rc5 {[%clk 0:01:08.3]} 1-0

[Event "*** Titled Tuesday Blitz"]
[Site "Chess.com"]
[Date "2019.08.06"]
[Round "5"]
[White "Manukyan_Artak"]
[Black "Rhemmy"]
[Result "0-1"]
[WhiteElo "2388"]
[BlackElo "2509"]
[TimeControl "180+2"]
[EndTime "14:03:13 PDT"]
[Termination "Rhemmy won by resignation"]

1. e4 {[%clk 0:03:01.9]} 1... e5 {[%clk 0:03:00.7]} 2. Nf3 {[%clk 0:03:02.6]}
2... Nc6 {[%clk 0:03:02.1]} 3. d4 {[%clk 0:03:03.9]} 3... exd4 {[%clk
0:03:03.1]} 4. Nxd4 {[%clk 0:03:05.8]} 4... Nf6 {[%clk 0:03:04.1]} 5. Nxc6
{[%clk 0:03:07]} 5... bxc6 {[%clk 0:03:06]} 6. e5 {[%clk 0:03:07.8]} 6... Qe7
{[%clk 0:03:07.6]} 7. Qe2 {[%clk 0:03:09.3]} 7... Nd5 {[%clk 0:03:09.2]} 8. c4
{[%clk 0:03:10.9]} 8... Nb6 {[%clk 0:03:10.4]} 9. b3 {[%clk 0:03:11.2]} 9... Bb7
{[%clk 0:03:10.3]} 10. Nc3 {[%clk 0:03:01.7]} 10... g6 {[%clk 0:03:10.8]} 11. f4
{[%clk 0:03:00.7]} 11... Bg7 {[%clk 0:03:11.5]} 12. Ne4 {[%clk 0:02:53.5]} 12...
O-O-O {[%clk 0:03:08.5]} 13. Bb2 {[%clk 0:02:50.1]} 13... Rhe8 {[%clk
0:03:09.2]} 14. O-O-O {[%clk 0:02:50.2]} 14... d5 {[%clk 0:03:03.5]} 15. Qg4+
{[%clk 0:02:09.1]} 15... Kb8 {[%clk 0:02:55.2]} 16. Nf6 {[%clk 0:02:07.7]} 16...
Bxf6 {[%clk 0:02:45.5]} 17. exf6 {[%clk 0:02:09.6]} 17... Qe3+ {[%clk
0:02:46.5]} 18. Kb1 {[%clk 0:02:10]} 18... dxc4 {[%clk 0:02:47.9]} 19. Bxc4
{[%clk 0:01:59.8]} 19... Nxc4 {[%clk 0:02:43.3]} 20. bxc4 {[%clk 0:02:01.7]}
20... c5 {[%clk 0:02:33.3]} 21. Qg3 {[%clk 0:00:50.4]} 21... Qe2 {[%clk
0:02:20.3]} 22. Qb3 {[%clk 0:00:27.1]} 22... Ka8 {[%clk 0:02:10.8]} 23. Ka1
{[%clk 0:00:16.7]} 23... Bxg2 {[%clk 0:01:55]} 24. Rxd8+ {[%clk 0:00:16]} 24...
Rxd8 {[%clk 0:01:54.1]} 25. Rc1 {[%clk 0:00:17.6]} 25... Be4 {[%clk 0:01:32.6]}
26. Qa3 {[%clk 0:00:14.1]} 26... Rb8 {[%clk 0:01:30.6]} 27. Qc3 {[%clk
0:00:13.5]} 27... Qxh2 {[%clk 0:01:22.1]} 28. Qe5 {[%clk 0:00:10.2]} 28... Qe2
{[%clk 0:01:12.5]} 29. Qc3 {[%clk 0:00:07]} 29... h5 {[%clk 0:01:04]} 30. Re1
{[%clk 0:00:07.8]} 30... Rxb2 {[%clk 0:00:58]} 0-1

[Event "*** Titled Tuesday Blitz"]
[Site "Chess.com"]
[Date "2019.08.06"]
[Round "5"]
[White "jefferyx"]
[Black "chito89"]
[Result "1-0"]
[WhiteElo "2932"]
[BlackElo "2837"]
[TimeControl "180+2"]
[EndTime "14:03:14 PDT"]
[Termination "jefferyx won by resignation"]

1. d4 {[%clk 0:03:01.9]} 1... Nf6 {[%clk 0:02:58.9]} 2. c4 {[%clk 0:03:03.5]}
2... e6 {[%clk 0:02:59.1]} 3. Nc3 {[%clk 0:03:05.1]} 3... c5 {[%clk 0:02:59.4]}
4. d5 {[%clk 0:03:04.8]} 4... exd5 {[%clk 0:02:58.3]} 5. cxd5 {[%clk 0:03:06.7]}
5... d6 {[%clk 0:02:59.7]} 6. Nf3 {[%clk 0:03:08.5]} 6... g6 {[%clk 0:03:00.5]}
7. Nd2 {[%clk 0:03:10.2]} 7... Bg7 {[%clk 0:02:58.4]} 8. e4 {[%clk 0:03:11.7]}
8... O-O {[%clk 0:02:59.2]} 9. Be2 {[%clk 0:03:13.3]} 9... Re8 {[%clk
0:03:00.3]} 10. O-O {[%clk 0:03:13.9]} 10... a6 {[%clk 0:03:01.3]} 11. a4 {[%clk
0:03:14.9]} 11... Nbd7 {[%clk 0:03:02.4]} 12. Re1 {[%clk 0:03:16]} 12... Ne5
{[%clk 0:03:02.2]} 13. Nf1 {[%clk 0:03:17.4]} 13... Rb8 {[%clk 0:02:59.3]} 14.
Ra3 {[%clk 0:03:16.5]} 14... c4 {[%clk 0:02:52.7]} 15. b4 {[%clk 0:03:02.7]}
15... cxb3 {[%clk 0:02:41.4]} 16. Rxb3 {[%clk 0:03:03.1]} 16... Ned7 {[%clk
0:02:30]} 17. Ba3 {[%clk 0:02:44.8]} 17... Nc5 {[%clk 0:02:15.3]} 18. Bxc5
{[%clk 0:02:45.6]} 18... dxc5 {[%clk 0:02:16.8]} 19. Bxa6 {[%clk 0:02:47.3]}
19... Ng4 {[%clk 0:01:53.1]} 20. Bb5 {[%clk 0:02:25.9]} 20... Bd4 {[%clk
0:01:53.2]} 21. Bxe8 {[%clk 0:02:02.5]} 21... Qf6 {[%clk 0:01:06.4]} 22. Qf3
{[%clk 0:01:33.5]} 22... Bxf2+ {[%clk 0:01:06.4]} 23. Kh1 {[%clk 0:01:34.9]}
23... Bxe1 {[%clk 0:01:05.1]} 24. Nb5 {[%clk 0:01:01]} 24... Qe7 {[%clk
0:00:40.1]} 25. Qf4 {[%clk 0:00:47.3]} 25... Ra8 {[%clk 0:00:09]} 26. Nc7 {[%clk
0:00:44.1]} 26... Ra5 {[%clk 0:00:05]} 27. d6 {[%clk 0:00:45.2]} 27... Qh4
{[%clk 0:00:05.9]} 28. Qxf7+ {[%clk 0:00:40.8]} 1-0

[Event "*** Titled Tuesday Blitz"]
[Site "Chess.com"]
[Date "2019.08.06"]
[Round "5"]
[White "wonderfultime"]
[Black "cancrushyou"]
[Result "1-0"]
[WhiteElo "2861"]
[BlackElo "2505"]
[TimeControl "180+2"]
[EndTime "14:03:15 PDT"]
[Termination "wonderfultime won by resignation"]

1. c4 {[%clk 0:03:01.9]} 1... e6 {[%clk 0:02:58.9]} 2. Nf3 {[%clk 0:02:58.3]}
2... d5 {[%clk 0:02:59]} 3. e3 {[%clk 0:02:59.4]} 3... Nf6 {[%clk 0:03:00]} 4.
Nc3 {[%clk 0:02:59.6]} 4... Be7 {[%clk 0:03:01.3]} 5. Qc2 {[%clk 0:03:00.5]}
5... O-O {[%clk 0:03:02.3]} 6. Be2 {[%clk 0:03:02.1]} 6... a6 {[%clk 0:03:03.1]}
7. b3 {[%clk 0:03:02.4]} 7... b6 {[%clk 0:03:02.9]} 8. Bb2 {[%clk 0:03:00.6]}
8... c5 {[%clk 0:02:59.5]} 9. cxd5 {[%clk 0:02:58.2]} 9... Nxd5 {[%clk
0:02:52.2]} 10. Nxd5 {[%clk 0:02:53.3]} 10... Qxd5 {[%clk 0:02:46.5]} 11. Bd3
{[%clk 0:02:54.5]} 11... Nc6 {[%clk 0:02:30.2]} 12. Bxh7+ {[%clk 0:02:54.4]}
12... Kh8 {[%clk 0:02:30.8]} 13. Be4 {[%clk 0:02:56.3]} 13... Qd6 {[%clk
0:02:00]} 14. O-O {[%clk 0:02:32.4]} 14... Bb7 {[%clk 0:01:58.5]} 15. a3 {[%clk
0:02:31.8]} 15... Rac8 {[%clk 0:01:51.9]} 16. Rac1 {[%clk 0:02:19.9]} 16... f5
{[%clk 0:01:52.5]} 17. Bd3 {[%clk 0:02:19.1]} 17... Bf6 {[%clk 0:01:42.7]} 18.
Be2 {[%clk 0:02:04]} 18... Bxb2 {[%clk 0:01:15.1]} 19. Qxb2 {[%clk 0:02:05.9]}
19... e5 {[%clk 0:01:16.6]} 20. d3 {[%clk 0:02:01.9]} 20... Rf6 {[%clk
0:01:13.4]} 21. b4 {[%clk 0:01:42.4]} 21... e4 {[%clk 0:00:38.7]} 22. dxe4
{[%clk 0:01:41.2]} 22... fxe4 {[%clk 0:00:38.9]} 23. bxc5 {[%clk 0:01:39.3]}
23... bxc5 {[%clk 0:00:31.7]} 24. Qxb7 {[%clk 0:01:35.1]} 24... Rb8 {[%clk
0:00:32.9]} 25. Qxa6 {[%clk 0:01:30.4]} 25... exf3 {[%clk 0:00:34]} 26. Bxf3
{[%clk 0:01:32.3]} 26... Rxf3 {[%clk 0:00:20.3]} 27. gxf3 {[%clk 0:01:34.2]}
27... Qd5 {[%clk 0:00:19.7]} 28. Qc4 {[%clk 0:01:23]} 28... Qxf3 {[%clk
0:00:15.8]} 29. Qh4+ {[%clk 0:01:24.1]} 29... Kg8 {[%clk 0:00:15.6]} 30. Rxc5
{[%clk 0:01:25.6]} 30... Ne7 {[%clk 0:00:05]} 31. Qg3 {[%clk 0:01:18.9]} 31...
Qa8 {[%clk 0:00:03.2]} 32. Rfc1 {[%clk 0:01:19.9]} 32... Rf8 {[%clk 0:00:03.5]}
33. Rg5 {[%clk 0:01:16.5]} 33... Nf5 {[%clk 0:00:04.4]} 34. Qg4 {[%clk 0:01:18]}
34... Qb7 {[%clk 0:00:04.3]} 35. Rxf5 {[%clk 0:01:18.6]} 1-0

[Event "*** Titled Tuesday Blitz"]
[Site "Chess.com"]
[Date "2019.08.06"]
[Round "5"]
[White "nikitakhoroshev"]
[Black "resha1988"]
[Result "0-1"]
[WhiteElo "2605"]
[BlackElo "2782"]
[TimeControl "180+2"]
[EndTime "14:03:16 PDT"]
[Termination "resha1988 won on time"]

1. d4 {[%clk 0:03:01.9]} 1... d5 {[%clk 0:03:00.2]} 2. Nf3 {[%clk 0:03:01.9]}
2... Nf6 {[%clk 0:03:00.7]} 3. c4 {[%clk 0:03:02.8]} 3... c6 {[%clk 0:03:01.6]}
4. Nc3 {[%clk 0:03:02]} 4... dxc4 {[%clk 0:02:58.4]} 5. a4 {[%clk 0:02:56.6]}
5... e6 {[%clk 0:02:59]} 6. e4 {[%clk 0:02:40.8]} 6... Bb4 {[%clk 0:02:58.9]} 7.
Qc2 {[%clk 0:02:40.3]} 7... b5 {[%clk 0:02:54.9]} 8. Be2 {[%clk 0:02:31.4]} 8...
Bb7 {[%clk 0:02:53.9]} 9. O-O {[%clk 0:02:31.6]} 9... a6 {[%clk 0:02:55]} 10.
Rd1 {[%clk 0:02:31.7]} 10... Nbd7 {[%clk 0:02:54.7]} 11. Bg5 {[%clk 0:02:31.1]}
11... h6 {[%clk 0:02:52.7]} 12. Bh4 {[%clk 0:02:31.5]} 12... Qb6 {[%clk
0:02:39]} 13. e5 {[%clk 0:01:25.3]} 13... Nd5 {[%clk 0:02:35.2]} 14. Ne4 {[%clk
0:01:25.1]} 14... O-O {[%clk 0:02:32.7]} 15. Neg5 {[%clk 0:00:57.2]} 15... hxg5
{[%clk 0:02:22.9]} 16. Nxg5 {[%clk 0:00:59.1]} 16... f5 {[%clk 0:02:12.6]} 17.
Nxe6 {[%clk 0:00:47.8]} 17... c5 {[%clk 0:02:04.9]} 18. Nxf8 {[%clk 0:00:44.4]}
18... Rxf8 {[%clk 0:02:06.8]} 19. axb5 {[%clk 0:00:37.6]} 19... axb5 {[%clk
0:02:08.7]} 20. dxc5 {[%clk 0:00:22.8]} 20... Nxc5 {[%clk 0:01:57.4]} 21. Bf3
{[%clk 0:00:17.5]} 21... Ne4 {[%clk 0:00:49.5]} 22. Bxe4 {[%clk 0:00:15]} 22...
fxe4 {[%clk 0:00:51.4]} 23. Qxe4 {[%clk 0:00:11.1]} 23... Bc5 {[%clk 0:00:52.6]}
24. Rxd5 {[%clk 0:00:07.2]} 24... Bxf2+ {[%clk 0:00:52.7]} 25. Kh1 {[%clk
0:00:07.9]} 25... Bxh4 {[%clk 0:00:50.3]} 26. Rd6 {[%clk 0:00:04]} 26... Qf2
{[%clk 0:00:42]} 0-1